[Event "Vienna Championship 2022"]
[Site "Vienna"]
[Date "2022.09.17"]
[Round "1.1"]
[White "Baumegger, Siegfried"]
[Black "Schwabeneder, Florian"]
[Result "0-1"]
[ECO "E62"]
[WhiteElo "2447"]
[BlackElo "2417"]
[Annotator "ChessBase"]
[PlyCount "80"]
[EventDate "2022.09.17"]
[EventType "tourn"]
[EventCountry "AUT"]
[SourceTitle "playchess.com"]
[Source "ChessBase"]
[SourceQuality "1"]
[TimeControl "5400+30"]

1. d4 {[%emt 0:00:06]} Nf6 {[%emt 0:00:39]} 2. c4 {[%emt 0:00:41]} g6 {[%emt 0:00:40]} 3. Nc3 {[%emt 0:00:56]} Bg7 {[%emt 0:00:10]} 4. g3 {[%emt 0:09:15]} O-O {[%emt 0:02:39]} 5. Bg2 {[%emt 0:00:04]} d6 {[%emt 0:00:30]} 6. Nf3 {[%emt 0:00:08]} Bg4 {[%emt 0:01:33]} 7. O-O {[%emt 0:04:23]} Qc8 {[%emt 0:01:09]} 8. Bg5 {[%emt 0:04:01]} Re8 {[%emt 0:01:18]} 9. Rc1 {[%emt 0:05:05]} e5 {[%emt 0:23:37]} 10. dxe5 {[%emt 0:12:55]} dxe5 {[%emt 0:00:09]} 11. Nd5 {[%emt 0:01:25]} Nbd7 {[%emt 0:01:32]} 12. h3 {[%emt 0:09:19]} Bf5 {[%emt 0:14:22]} 13. Nh4 {[%emt 0:13:04]} Be6 {[%emt 0:01:16]} 14. Qd2 {[%emt 0:00:23]} c6 {[%emt 0:11:50]} 15. e4 {[%emt 0:06:04]} Qb8 {[%emt 0:07:05]} 16. f4 {[%emt 0:23:00]} cxd5 {[%emt 0:09:33]} 17. cxd5 {[%emt 0:00:20]} Nxe4 {[%emt 0:01:30]} 18. Bxe4 {[%emt 0:01:07]} Bxh3 {[%emt 0:00:14]} 19. Rf2 {[%emt 0:06:02]} f5 {[%emt 0:08:42]} 20. Bh1 {[%emt 0:01:04]} Qd6 {[%emt 0:02:18]} 21. fxe5 {[%emt 0:00:46]} Bxe5 {[%emt 0:03:57]} 22. Bf4 {[%emt 0:00:05]} Bg4 {[%emt 0:00:20]} 23. Nf3 {[%emt 0:00:34]} Bxf3 {[%emt 0:00:25]} 24. Bxf3 {[%emt 0:00:11]} Nf6 {[%emt 0:00:59]} 25. Re2 {[%emt 0:00:25]} Bxf4 {[%emt 0:01:31]} 26. Qxf4 {[%emt 0:00:47]} Qxf4 {[%emt 0:02:37]} 27. gxf4 {[%emt 0:00:13]} Rxe2 {[%emt 0:00:23]} 28. Bxe2 {[%emt 0:00:03]} Rd8 {[%emt 0:00:09]} 29. Bf3 {[%emt 0:00:57]} Kf7 {[%emt 0:00:59]} 30. Rc7+ {[%emt 0:01:31]} Rd7 {[%emt 0:00:10]} 31. d6 {[%emt 0:00:18]} Ke6 {[%emt 0:00:23]} 32. Bxb7 {[%emt 0:00:18]} Kxd6 {[%emt 0:01:03]} 33. Rxd7+ {[%emt 0:00:55]} Nxd7 {[%emt 0:00:28]} 34. Kf2 {[%emt 0:00:17]} Nc5 {[%emt 0:00:09]} 35. Bf3 {[%emt 0:00:47]} Nd3+ {[%emt 0:00:11]} 36. Ke3 {[%emt 0:00:15]} Nxb2 {[%emt 0:00:07]} 37. Kd4 {[%emt 0:00:03]} Na4 {[%emt 0:00:14]} 38. Bd5 {[%emt 0:00:34]} Nc5 {[%emt 0:00:06]} 39. Bg8 {[%emt 0:00:26]} Ne6+ {[%emt 0:00:35]} 40. Kc4 {[%emt 0:00:14]} h5 {[%emt 0:00:56]} 0-1

[Event "Vienna Championship 2022"]
[Site "Vienna"]
[Date "2022.09.17"]
[Round "1.2"]
[White "Vitouch, Anatol"]
[Black "Halvax, Georg"]
[Result "0-1"]
[ECO "D00"]
[WhiteElo "2252"]
[BlackElo "2423"]
[Annotator "ChessBase"]
[PlyCount "118"]
[EventDate "2022.09.17"]
[EventType "tourn"]
[EventCountry "AUT"]
[SourceTitle "playchess.com"]
[Source "ChessBase"]
[SourceQuality "1"]
[TimeControl "5400+30"]

1. d4 {[%emt 0:00:02]} d5 {[%emt 0:00:09]} 2. Bf4 {[%emt 0:00:16]} Nf6 {[%emt 0:00:10]} 3. e3 {[%emt 0:00:06]} c5 {[%emt 0:00:08]} 4. c3 {[%emt 0:00:26]} Nc6 {[%emt 0:00:08]} 5. Nd2 {[%emt 0:00:15]} cxd4 {[%emt 0:00:10]} 6. exd4 {[%emt 0:00:09]} Bf5 {[%emt 0:00:08]} 7. Ngf3 {[%emt 0:00:42]} e6 {[%emt 0:00:11]} 8. Qb3 {[%emt 0:01:34]} Qc8 {[%emt 0:00:08]} 9. Nh4 {[%emt 0:00:19]} Be4 {[%emt 0:00:08]} 10. Nxe4 {[%emt 0:00:37]} dxe4 {[%emt 0:00:08]} 11. g3 {[%emt 0:00:28]} h6 {[%emt 0:00:09]} 12. Ng2 {[%emt 0:00:42]} Be7 {[%emt 0:00:24]} 13. Be2 {[%emt 0:01:21]} O-O {[%emt 0:00:50]} 14. O-O {[%emt 0:03:41]} a6 {[%emt 0:01:45]} 15. Rae1 {[%emt 0:09:43]} b5 {[%emt 0:09:13]} 16. f3 {[%emt 0:03:52]} exf3 {[%emt 0:02:19]} 17. Bxf3 {[%emt 0:00:20]} Ra7 {[%emt 0:00:53]} 18. Bc1 {[%emt 0:19:47]} Rd7 {[%emt 0:12:35]} 19. Nf4 {[%emt 0:01:48]} Na5 {[%emt 0:02:04]} 20. Qd1 {[%emt 0:01:44]} b4 {[%emt 0:01:04]} 21. Qa4 {[%emt 0:07:14]} Nc4 {[%emt 0:03:12]} 22. Be2 {[%emt 0:08:21]} Nb6 {[%emt 0:13:36]} 23. Qa5 {[%emt 0:07:22]} Nbd5 {[%emt 0:04:08]} 24. Nxd5 {[%emt 0:05:11]} Rxd5 {[%emt 0:15:41]} 25. Qxa6 {[%emt 0:06:06]} bxc3 {[%emt 0:00:31]} 26. Qxc8 {[%emt 0:01:08]} Rxc8 {[%emt 0:00:02]} 27. bxc3 {[%emt 0:00:09]} Rxc3 {[%emt 0:03:00]} 28. Bf3 {[%emt 0:00:17]} Rd8 {[%emt 0:01:44]} 29. Bb2 {[%emt 0:01:25]} Rc4 {[%emt 0:04:47]} 30. Bd1 {[%emt 0:01:52]} Rc7 {[%emt 0:02:19]} 31. Bb3 {[%emt 0:00:18]} Ra7 {[%emt 0:00:22]} 32. Rf2 {[%emt 0:04:28]} Nd5 {[%emt 0:01:42]} 33. Rd1 {[%emt 0:04:41]} Bg5 {[%emt 0:05:37]} 34. Re2 {[%emt 0:00:32]} Bf6 {[%emt 0:00:53]} 35. Kg2 {[%emt 0:00:45]} Rad7 {[%emt 0:04:12]} 36. Kf3 {[%emt 0:00:45]} Nb4 {[%emt 0:04:45]} 37. Ke4 {[%emt 0:01:09]} Nc6 {[%emt 0:00:40]} 38. Red2 {[%emt 0:01:43]} Na5 {[%emt 0:00:16]} 39. Ba4 {[%emt 0:05:37]} Rb7 {[%emt 0:00:35]} 40. Bc3 {[%emt 0:01:18]} Nc4 {[%emt 0:00:40]} 41. Rc2 {[%emt 0:01:21]} Nd6+ {[%emt 0:01:16]} 42. Kf3 {[%emt 0:00:53]} Ra7 {[%emt 0:00:29]} 43. Bb3 {[%emt 0:00:12]} Nb5 {[%emt 0:00:07]} 44. a4 {[%emt 0:00:32]} Nxc3 {[%emt 0:03:51]} 45. Rxc3 {[%emt 0:00:04]} Rxd4 {[%emt 0:00:15]} 46. Rxd4 {[%emt 0:00:23]} Bxd4 {[%emt 0:00:03]} 47. Rc8+ {[%emt 0:00:39]} Kh7 {[%emt 0:00:03]} 48. Ke4 {[%emt 0:00:44]} Bg1 {[%emt 0:00:34]} 49. h3 {[%emt 0:00:39]} g6 {[%emt 0:00:25]} 50. g4 {[%emt 0:00:46]} Kg7 {[%emt 0:00:12]} 51. Kd3 {[%emt 0:00:59]} Kf6 {[%emt 0:00:13]} 52. Kc4 {[%emt 0:00:32]} Kg5 {[%emt 0:00:22]} 53. Rh8 {[%emt 0:00:18]} Be3 {[%emt 0:00:38]} 54. Bc2 {[%emt 0:00:18]} Kh4 {[%emt 0:00:23]} 55. Kb5 {[%emt 0:00:15]} Kxh3 {[%emt 0:00:35]} 56. Bd1 {[%emt 0:00:05]} Rd7 {[%emt 0:00:25]} 57. Be2 {[%emt 0:00:06]} Rd2 {[%emt 0:00:24]} 58. Bf3 {[%emt 0:00:12]} Kg3 {[%emt 0:00:09]} 59. Bc6 {[%emt 0:00:08]} Kxg4 {[%emt 0:00:17]} 0-1

[Event "Vienna Championship 2022"]
[Site "Vienna"]
[Date "2022.09.17"]
[Round "1.3"]
[White "Steindl, Johannes"]
[Black "Kruckenhauser, Arthur"]
[Result "1-0"]
[ECO "C83"]
[WhiteElo "2327"]
[BlackElo "2289"]
[Annotator "ChessBase"]
[PlyCount "115"]
[EventDate "2022.09.17"]
[EventType "tourn"]
[EventCountry "AUT"]
[SourceTitle "playchess.com"]
[Source "ChessBase"]
[SourceQuality "1"]
[TimeControl "5400+30"]

1. e4 e5 2. Nf3 Nc6 3. Bb5 a6 4. Ba4 Nf6 5. O-O Nxe4 6. d4 b5 7. Bb3 d5 8. dxe5 Be6 9. c3 Be7 10. Nbd2 O-O 11. Bc2 f5 12. Nb3 Qd7 13. Nfd4 Nxd4 14. Nxd4 c5 15. Nxe6 Qxe6 16. f3 Ng5 17. Bf4 Rad8 18. Kh1 Qb6 19. Bxg5 Bxg5 20. f4 Be7 21. g4 d4 22. Bxf5 dxc3 23. Qb3+ Kh8 24. Qxc3 Qb7+ 25. Qf3 Qxf3+ 26. Rxf3 g6 27. Be6 Rd2 28. b3 Rfd8 29. a4 Re2 30. axb5 axb5 31. Kg1 Rdd2 32. Rh3 Kg7 33. g5 Rg2+ 34. Kh1 Rgf2 35. Rh4 Rd4 36. f5 gxf5 37. Rxd4 cxd4 38. Ra7 d3 39. Rxe7+ Kg6 40. h4 f4 41. Bg4 f3 42. Re6+ Kg7 43. Rd6 d2 44. Bh3 Re2 45. Bf1 Re1 46. Rxd2 Rxf1+ 47. Kh2 Rb1 48. h5 f2 49. Rxf2 Rxb3 50. Re2 Rf3 51. e6 Kf8 52. g6 hxg6 53. hxg6 Rf6 54. g7+ Kxg7 55. e7 Rh6+ 56. Kg1 Rg6+ 57. Kf1 Rf6+ 58. Ke1 1-0

[Event "Vienna Championship 2022"]
[Site "Vienna"]
[Date "2022.09.17"]
[Round "1.4"]
[White "Atzl, Florian"]
[Black "Leisch, Lukas"]
[Result "0-1"]
[ECO "B50"]
[WhiteElo "2155"]
[BlackElo "2409"]
[Annotator "ChessBase"]
[PlyCount "78"]
[EventDate "2022.09.17"]
[EventType "tourn"]
[EventCountry "AUT"]
[SourceTitle "playchess.com"]
[Source "ChessBase"]
[SourceQuality "1"]
[TimeControl "5400+30"]

1. e4 {[%emt 0:00:02]} c5 {[%emt 0:07:30]} 2. Nf3 {[%emt 0:00:12]} d6 {[%emt 0:00:07]} 3. b3 {[%emt 0:00:07]} Nf6 {[%emt 0:01:35]} 4. Nc3 {[%emt 0:00:54]} g6 {[%emt 0:02:53]} 5. Bb2 {[%emt 0:00:24]} Bg7 {[%emt 0:00:07]} 6. Qe2 {[%emt 0:01:02]} O-O {[%emt 0:03:50]} 7. g3 {[%emt 0:00:55]} Nc6 {[%emt 0:00:44]} 8. h3 {[%emt 0:03:21]} Ne8 {[%emt 0:03:13]} 9. Bg2 {[%emt 0:03:37]} Nc7 {[%emt 0:02:17]} 10. O-O {[%emt 0:04:39]} Ne6 {[%emt 0:01:17]} 11. Nd1 {[%emt 0:04:58]} Ned4 {[%emt 0:05:13]} 12. Nxd4 {[%emt 0:00:12]} Nxd4 {[%emt 0:00:08]} 13. Qd3 {[%emt 0:00:58]} Bd7 {[%emt 0:01:11]} 14. a4 {[%emt 0:10:05]} Rc8 {[%emt 0:02:47]} 15. f4 {[%emt 0:05:43]} Qc7 {[%emt 0:09:10]} 16. Ne3 {[%emt 0:05:05]} Ne2+ {[%emt 0:11:49]} 17. Qxe2 {[%emt 0:00:06]} Bxb2 {[%emt 0:00:03]} 18. Rab1 {[%emt 0:01:14]} Bg7 {[%emt 0:00:31]} 19. f5 {[%emt 0:05:53]} Qd8 {[%emt 0:01:38]} 20. c3 {[%emt 0:04:22]} Bc6 {[%emt 0:03:25]} 21. Qf3 {[%emt 0:05:35]} a6 {[%emt 0:01:25]} 22. g4 {[%emt 0:00:55]} g5 {[%emt 0:05:28]} 23. h4 {[%emt 0:01:21]} Bf6 {[%emt 0:03:32]} 24. Kf2 {[%emt 0:04:46]} gxh4 {[%emt 0:02:21]} 25. Qf4 {[%emt 0:00:58]} e6 {[%emt 0:01:43]} 26. Rh1 {[%emt 0:04:55]} Bg5 {[%emt 0:00:34]} 27. Qh2 {[%emt 0:03:00]} d5 {[%emt 0:03:49]} 28. e5 {[%emt 0:02:31]} b5 {[%emt 0:02:45]} 29. axb5 {[%emt 0:03:15]} axb5 {[%emt 0:02:37]} 30. Nc2 {[%emt 0:02:13]} d4 {[%emt 0:03:01]} 31. Bxc6 {[%emt 0:02:10]} Rxc6 {[%emt 0:01:03]} 32. Qg2 {[%emt 0:00:19]} Ra6 {[%emt 0:01:09]} 33. Rbd1 {[%emt 0:02:50]} Ra2 {[%emt 0:00:56]} 34. Qe4 {[%emt 0:00:38]} Qd5 {[%emt 0:01:29]} 35. Qxd5 {[%emt 0:00:32]} exd5 {[%emt 0:00:01]} 36. Ne1 {[%emt 0:01:12]} dxc3 {[%emt 0:00:29]} 37. Nf3 {[%emt 0:00:52]} h6 {[%emt 0:01:01]} 38. Nxh4 {[%emt 0:02:19]} c2 {[%emt 0:03:30]} 39. Ra1 {[%emt 0:01:36]} Rxa1 {[%emt 0:00:25]} 0-1

[Event "Vienna Championship 2022"]
[Site "Vienna"]
[Date "2022.09.17"]
[Round "1.5"]
[White "Stanec, Nikolaus"]
[Black "Peyrer, Konstantin"]
[Result "1/2-1/2"]
[ECO "C67"]
[WhiteElo "2458"]
[BlackElo "2402"]
[Annotator "ChessBase"]
[PlyCount "29"]
[EventDate "2022.09.17"]
[EventType "tourn"]
[EventCountry "AUT"]
[SourceTitle "playchess.com"]
[Source "ChessBase"]
[SourceQuality "1"]
[TimeControl "5400+30"]

1. e4 {[%emt 0:00:03]} e5 {[%emt 0:00:11]} 2. Nf3 {[%emt 0:00:06]} Nc6 {[%emt 0:00:05]} 3. Bb5 {[%emt 0:00:15]} Nf6 {[%emt 0:00:07]} 4. O-O {[%emt 0:00:58]} Nxe4 {[%emt 0:00:06]} 5. Re1 {[%emt 0:00:27]} Nd6 {[%emt 0:00:05]} 6. Nxe5 {[%emt 0:00:07]} Be7 {[%emt 0:00:05]} 7. Bf1 {[%emt 0:00:16]} Nxe5 {[%emt 0:00:11]} 8. Rxe5 {[%emt 0:00:06]} O-O {[%emt 0:00:05]} 9. d4 {[%emt 0:00:14]} Bf6 {[%emt 0:00:08]} 10. Re1 {[%emt 0:00:12]} Re8 {[%emt 0:00:06]} 11. c3 {[%emt 0:00:51]} Rxe1 {[%emt 0:01:30]} 12. Qxe1 {[%emt 0:00:06]} Nf5 {[%emt 0:00:10]} 13. Nd2 {[%emt 0:01:28]} d5 {[%emt 0:00:31]} 14. Nf3 {[%emt 0:00:16]} Nd6 {[%emt 0:00:48]} 15. Bf4 {[%emt 0:01:05]} 1/2-1/2

[Event "Vienna Championship 2022"]
[Site "Vienna"]
[Date "2022.09.18"]
[Round "2.1"]
[White "Schwabeneder, Florian"]
[Black "Peyrer, Konstantin"]
[Result "1/2-1/2"]
[ECO "C13"]
[WhiteElo "2417"]
[BlackElo "2402"]
[Annotator "ChessBase"]
[PlyCount "36"]
[EventDate "2022.09.17"]
[EventType "tourn"]
[EventCountry "AUT"]
[SourceTitle "playchess.com"]
[Source "ChessBase"]
[SourceQuality "1"]
[TimeControl "5400+30"]

1. e4 {[%emt 0:00:05]} e6 {[%emt 0:00:09]} 2. d4 {[%emt 0:02:23]} d5 {[%emt 0:00:06]} 3. Nc3 {[%emt 0:00:30]} Nf6 {[%emt 0:00:08]} 4. Bg5 {[%emt 0:01:08]} dxe4 {[%emt 0:00:06]} 5. Nxe4 {[%emt 0:00:11]} Be7 {[%emt 0:00:07]} 6. Nxf6+ {[%emt 0:01:18]} Bxf6 {[%emt 0:01:01]} 7. Bxf6 {[%emt 0:01:48]} Qxf6 {[%emt 0:00:07]} 8. Nf3 {[%emt 0:00:10]} O-O {[%emt 0:02:32]} 9. Qd3 {[%emt 0:00:33]} c5 {[%emt 0:00:39]} 10. O-O-O {[%emt 0:00:56]} Rd8 {[%emt 0:05:07]} 11. Qe4 {[%emt 0:23:09]} Nc6 {[%emt 0:03:13]} 12. Bd3 {[%emt 0:00:39]} Qh6+ {[%emt 0:00:09]} 13. Kb1 {[%emt 0:00:08]} cxd4 {[%emt 0:08:07]} 14. Bb5 {[%emt 0:09:14]} Bd7 {[%emt 0:03:34]} 15. Nxd4 {[%emt 0:04:03]} f5 {[%emt 0:05:10]} 16. Qe3 {[%emt 0:10:19]} Nxd4 {[%emt 0:02:35]} 17. Bxd7 {[%emt 0:00:09]} Rxd7 {[%emt 0:00:08]} 18. Rxd4 {[%emt 0:00:10]} Qg5 {[%emt 1:06:32]} 1/2-1/2

[Event "Vienna Championship 2022"]
[Site "Vienna"]
[Date "2022.09.18"]
[Round "2.2"]
[White "Leisch, Lukas"]
[Black "Stanec, Nikolaus"]
[Result "0-1"]
[ECO "E00"]
[WhiteElo "2409"]
[BlackElo "2458"]
[Annotator "ChessBase"]
[PlyCount "50"]
[EventDate "2022.09.17"]
[EventType "tourn"]
[EventCountry "AUT"]
[SourceTitle "playchess.com"]
[Source "ChessBase"]
[SourceQuality "1"]
[TimeControl "5400+30"]

1. d4 {[%emt 0:00:04]} Nf6 {[%emt 0:00:05]} 2. c4 {[%emt 0:00:07]} e6 {[%emt 0:00:06]} 3. g3 {[%emt 0:00:11]} Bb4+ {[%emt 0:00:33]} 4. Nd2 {[%emt 0:00:09]} O-O {[%emt 0:00:39]} 5. Bg2 {[%emt 0:00:10]} d6 {[%emt 0:05:13]} 6. a3 {[%emt 0:03:56]} Bxd2+ {[%emt 0:00:06]} 7. Qxd2 {[%emt 0:00:20]} Qe7 {[%emt 0:00:42]} 8. e3 {[%emt 0:05:53]} e5 {[%emt 0:00:31]} 9. Ne2 {[%emt 0:02:06]} exd4 {[%emt 0:07:36]} 10. Nxd4 {[%emt 0:01:16]} c5 {[%emt 0:02:27]} 11. Nb5 {[%emt 0:06:32]} Rd8 {[%emt 0:00:22]} 12. O-O {[%emt 0:03:40]} Be6 {[%emt 0:01:41]} 13. Qe2 {[%emt 0:04:47]} d5 {[%emt 0:01:03]} 14. cxd5 {[%emt 0:03:53]} Nxd5 {[%emt 0:02:35]} 15. Rd1 {[%emt 0:04:50]} Nc6 {[%emt 0:01:16]} 16. Bd2 {[%emt 0:22:17]} Nb6 {[%emt 0:02:18]} 17. Bxc6 {[%emt 0:02:19]} bxc6 {[%emt 0:00:35]} 18. Nc3 {[%emt 0:00:02]} Bc4 {[%emt 0:05:35]} 19. Qe1 {[%emt 0:02:09]} Bb3 {[%emt 0:00:33]} 20. Rdc1 {[%emt 0:01:05]} Nc4 {[%emt 0:00:15]} 21. Nb1 {[%emt 0:00:18]} Qe4 {[%emt 0:18:18]} 22. Qe2 {[%emt 0:09:16]} Ne5 {[%emt 0:01:24]} 23. Nc3 {[%emt 0:05:57]} Nf3+ {[%emt 0:01:14]} 24. Kh1 {[%emt 0:00:18]} Qg4 {[%emt 0:04:04]} 25. Kg2 {[%emt 0:15:24]} Nh4+ {[%emt 0:00:35]} 0-1

[Event "Vienna Championship 2022"]
[Site "Vienna"]
[Date "2022.09.18"]
[Round "2.3"]
[White "Kruckenhauser, Arthur"]
[Black "Atzl, Florian"]
[Result "1-0"]
[ECO "D36"]
[WhiteElo "2289"]
[BlackElo "2155"]
[Annotator "ChessBase"]
[PlyCount "75"]
[EventDate "2022.09.17"]
[EventType "tourn"]
[EventCountry "AUT"]
[SourceTitle "playchess.com"]
[Source "ChessBase"]
[SourceQuality "1"]
[TimeControl "5400+30"]

1. d4 {[%emt 0:00:08]} d5 {[%emt 0:00:25]} 2. c4 {[%emt 0:00:30]} e6 {[%emt 0:00:24]} 3. Nc3 {[%emt 0:00:17]} Nf6 {[%emt 0:00:49]} 4. cxd5 {[%emt 0:00:05]} exd5 {[%emt 0:00:57]} 5. Bg5 {[%emt 0:00:14]} c6 {[%emt 0:03:30]} 6. e3 {[%emt 0:00:36]} Be7 {[%emt 0:03:49]} 7. Bd3 {[%emt 0:00:43]} O-O {[%emt 0:02:49]} 8. Qc2 {[%emt 0:01:22]} h6 {[%emt 0:03:02]} 9. Bh4 {[%emt 0:00:03]} Re8 {[%emt 0:01:30]} 10. Nf3 {[%emt 0:01:38]} Be6 {[%emt 0:07:12]} 11. O-O {[%emt 0:06:35]} a5 {[%emt 0:01:19]} 12. Rae1 {[%emt 0:04:15]} Na6 {[%emt 0:03:49]} 13. a3 {[%emt 0:02:58]} b5 {[%emt 0:10:43]} 14. Ne5 {[%emt 0:05:11]} Bd7 {[%emt 0:13:10]} 15. Rc1 {[%emt 0:10:12]} b4 {[%emt 0:04:50]} 16. Bxf6 {[%emt 0:15:10]} Bxf6 {[%emt 0:02:00]} 17. Nxd7 {[%emt 0:00:18]} Qxd7 {[%emt 0:00:31]} 18. Na4 {[%emt 0:00:06]} Qb7 {[%emt 0:19:53]} 19. Qxc6 {[%emt 0:02:40]} Qxc6 {[%emt 0:02:16]} 20. Rxc6 {[%emt 0:00:05]} Nb8 {[%emt 0:00:48]} 21. Rc7 {[%emt 0:01:52]} Na6 {[%emt 0:03:15]} 22. Bxa6 {[%emt 0:03:12]} Rxa6 {[%emt 0:00:06]} 23. axb4 {[%emt 0:00:03]} axb4 {[%emt 0:01:48]} 24. b3 {[%emt 0:00:05]} Be7 {[%emt 0:03:17]} 25. Rfc1 {[%emt 0:01:00]} Bd6 {[%emt 0:01:39]} 26. R7c6 {[%emt 0:01:58]} Rxc6 {[%emt 0:00:39]} 27. Rxc6 {[%emt 0:00:05]} Bf8 {[%emt 0:00:31]} 28. Kf1 {[%emt 0:00:58]} Ra8 {[%emt 0:00:10]} 29. Ke2 {[%emt 0:00:28]} f5 {[%emt 0:01:26]} 30. Rc7 {[%emt 0:01:21]} Ra5 {[%emt 0:01:22]} 31. Rd7 {[%emt 0:00:24]} Kh7 {[%emt 0:01:38]} 32. Rf7 {[%emt 0:03:18]} Bd6 {[%emt 0:00:04]} 33. Rxf5 {[%emt 0:00:07]} Kg6 {[%emt 0:00:05]} 34. g4 {[%emt 0:00:06]} Bxh2 {[%emt 0:00:16]} 35. f4 {[%emt 0:00:11]} Ra8 {[%emt 0:02:13]} 36. Rxd5 {[%emt 0:00:39]} Rc8 {[%emt 0:00:22]} 37. Rc5 {[%emt 0:00:30]} Re8 {[%emt 0:00:04]} 38. Kf2 {[%emt 0:00:52]} 1-0

[Event "Vienna Championship 2022"]
[Site "Vienna"]
[Date "2022.09.18"]
[Round "2.4"]
[White "Halvax, Georg"]
[Black "Steindl, Johannes"]
[Result "1-0"]
[ECO "E73"]
[WhiteElo "2423"]
[BlackElo "2327"]
[Annotator "ChessBase"]
[PlyCount "113"]
[EventDate "2022.09.17"]
[EventType "tourn"]
[EventCountry "AUT"]
[SourceTitle "playchess.com"]
[Source "ChessBase"]
[SourceQuality "1"]
[TimeControl "5400+30"]

1. d4 {[%emt 0:00:04]} Nf6 {[%emt 0:03:50]} 2. c4 {[%emt 0:00:29]} g6 {[%emt 0:00:10]} 3. Nc3 {[%emt 0:00:09]} Bg7 {[%emt 0:00:03]} 4. e4 {[%emt 0:00:11]} d6 {[%emt 0:00:03]} 5. Be2 {[%emt 0:00:10]} O-O {[%emt 0:00:07]} 6. Be3 {[%emt 0:00:07]} e5 {[%emt 0:00:08]} 7. d5 {[%emt 0:00:10]} Na6 {[%emt 0:00:04]} 8. g4 {[%emt 0:00:20]} Nc5 {[%emt 0:00:08]} 9. f3 {[%emt 0:00:08]} h5 {[%emt 0:00:06]} 10. g5 {[%emt 0:00:20]} Nh7 {[%emt 0:00:06]} 11. h4 {[%emt 0:00:17]} f6 {[%emt 0:00:03]} 12. gxf6 {[%emt 0:00:16]} Bxf6 {[%emt 0:00:03]} 13. Bf2 {[%emt 0:00:35]} Be7 {[%emt 0:00:03]} 14. Qd2 {[%emt 0:00:43]} Rf4 {[%emt 0:00:28]} 15. O-O-O {[%emt 0:00:15]} Rxh4 {[%emt 0:00:58]} 16. Bxh4 {[%emt 0:00:09]} Bxh4 {[%emt 0:00:04]} 17. Kb1 {[%emt 0:00:11]} Bg5 {[%emt 0:13:07]} 18. Qc2 {[%emt 0:01:26]} Kg7 {[%emt 0:05:24]} 19. Bf1 {[%emt 0:01:20]} Qf6 {[%emt 0:06:58]} 20. Qg2 {[%emt 0:09:57]} Bd7 {[%emt 0:03:35]} 21. Nh3 {[%emt 0:02:33]} Bh6 {[%emt 0:04:46]} 22. Be2 {[%emt 0:01:18]} Rf8 {[%emt 0:02:50]} 23. Rdg1 {[%emt 0:09:17]} Be3 {[%emt 0:02:31]} 24. Rf1 {[%emt 0:01:04]} a5 {[%emt 0:05:27]} 25. f4 {[%emt 0:04:04]} exf4 {[%emt 0:03:59]} 26. Bxh5 {[%emt 0:01:27]} Bxh3 {[%emt 0:14:42]} 27. Rxh3 {[%emt 0:00:39]} Qg5 {[%emt 0:00:04]} 28. Qh1 {[%emt 0:11:49]} gxh5 {[%emt 0:01:56]} 29. Rxe3 {[%emt 0:00:20]} fxe3 {[%emt 0:00:05]} 30. Rg1 {[%emt 0:00:04]} Kh6 {[%emt 0:00:09]} 31. Rxg5 {[%emt 0:00:06]} Nxg5 {[%emt 0:00:03]} 32. a3 {[%emt 0:12:32]} Rf2 {[%emt 0:08:12]} 33. e5 {[%emt 0:12:31]} dxe5 {[%emt 0:04:25]} 34. b4 {[%emt 0:04:15]} axb4 {[%emt 0:03:55]} 35. axb4 {[%emt 0:00:08]} Nb3 {[%emt 0:00:06]} 36. d6 {[%emt 0:00:13]} cxd6 {[%emt 0:03:42]} 37. Qd5 {[%emt 0:01:48]} Rd2 {[%emt 0:00:58]} 38. Qxb7 {[%emt 0:01:06]} e2 {[%emt 0:00:25]} 39. Nxe2 {[%emt 0:00:28]} Rxe2 {[%emt 0:00:03]} 40. Qd5 {[%emt 0:04:15]} Ne4 {[%emt 0:04:03]} 41. Qd3 {[%emt 0:00:08]} Kg7 {[%emt 0:02:24]} 42. b5 {[%emt 0:02:23]} Nbc5 {[%emt 0:05:02]} 43. Qh3 {[%emt 0:00:49]} Nd2+ {[%emt 0:01:00]} 44. Kc1 {[%emt 0:00:49]} Nxc4 {[%emt 0:02:30]} 45. Qxh5 {[%emt 0:00:31]} Nb3+ {[%emt 0:03:04]} 46. Kd1 {[%emt 0:00:20]} Rg2 {[%emt 0:00:04]} 47. Qh3 {[%emt 0:01:54]} Rg1+ {[%emt 0:00:27]} 48. Ke2 {[%emt 0:00:26]} Nd4+ {[%emt 0:01:11]} 49. Kf2 {[%emt 0:00:20]} Rg6 {[%emt 0:00:44]} 50. Qd7+ {[%emt 0:00:13]} Kh6 {[%emt 0:00:10]} 51. Qd8 {[%emt 0:00:30]} Kh7 {[%emt 0:01:03]} 52. Qc7+ {[%emt 0:00:19]} Rg7 {[%emt 0:00:18]} 53. Qxc4 {[%emt 0:00:08]} Rb7 {[%emt 0:00:27]} 54. b6 {[%emt 0:00:34]} Re7 {[%emt 0:01:17]} 55. Qc8 {[%emt 0:01:42]} e4 {[%emt 0:00:00]} 56. Ke3 {[%emt 0:00:25]} Ne6 {[%emt 0:00:24]} 57. b7 {[%emt 0:00:11]} 1-0